Workbook

Sheet MSU
B1: Jere Viitasalo | E1: 12.5.1995 Oulu
B2: SUPERPESIS | E2: Runkosarja | I2: Kärkilyönnit (KL), pesänvälit | P2: Ylempi loppusarja | W2: Alempi loppusarja | AD2: Arvo-ottelut | AH2: Mitalit
B3: Vuosi | C3: Sija | D3: Seura | E3: OTT | F3: KUN | G3: LÖI | H3: TOI | I3: KL | J3: 0 > 1 | K3: 1 > 2 | L3: 2 > 3 | M3: 3 > k | N3: KL-% | P3: OTT | Q3: KUN | R3: LÖI | S3: TOI | T3: KL | U3: KL-% | W3: OTT | X3: KUN | Y3: LÖI | Z3: TOI | AA3: KL | AB3: KL-% | AD3: IL | AE3: LL | AF3: hSM | AG3: K | AH3: H | AI3: P
B4: 2012 | C4: 9. | D4: IiU | F4: suomensarja
B5: 2012 | C5: 1. | D5: Lippo Pesis | F5: ykköspesis | W5: 2 | X5: 0 | Y5: 0 | Z5: 0 | AA5: 1 | AB5: 50.0 %
B6: 2013 | C6: 5. | D6: Lippo Pesis 2 | F6: suomensarja
B7: 2014 | C7: 7. | D7: Lippo Pesis 2 | F7: suomensarja
B8: 2014 | C8: 6. | D8: Lippo Pesis | F8: ykköspesis
B9: 2015 | C9: 1. | D9: MuPS | F9: suomensarja
B10: 2016 | C10: 7. | D10: KaMa 2 | F10: suomensarja
B11: 2016 | C11: 11. | D11: KaMa | E11: 4 | F11: 0 | G11: 1 | H11: 0 | I11: 2 | J11: 0 | K11: 1 | L11: 0 | M11: 1 | N11: 20.0 % | O11: 10
B12: 2017
B13: 2018 | C13: 3. | D13: Lippo Pesis 2 | F13: suomensarja
B14: 2018 | C14: 14. | D14: Lippo Pesis | E14: 8 | F14: 1 | G14: 10 | H14: 3 | I14: 20 | J14: 0 | K14: 1 | L14: 8 | M14: 11 | N14: 47.6 % | O14: 42
B15: 2019 | C15: 6. | D15: Lippo Juniorit | F15: suomensarja
B16: Yhteensä | E16: =SUM(E1:E15) -> 12 | F16: 1 | G16: 11 | H16: 3 | I16: 22 | J16: 0 | K16: 2 | L16: 8 | M16: 12 | N16: =PRODUCT(I16/O16) -> 52.4 % | O16: =SUM(O12:O15) -> 42 | P16: 0 | Q16: 0 | R16: 0 | S16: 0 | T16: 0 | U16: 0.0 % | W16: =PRODUCT(E22) -> 2 | X16: =PRODUCT(F22) -> 0 | Y16: 0 | Z16: 0 | AA16: 1 | AB16: =PRODUCT(N22) -> 50.0 % | AD16: 0 | AE16: 0 | AF16: 0 | AG16: 0 | AH16: 0 | AI16: 0
B17: Pesispörssi | D17: =SUM(F16:H16)+((I16-F16-G16)/3)+(E16/3)+(AL16*25)+(AM16*25)+(AN16*10)+(AO16*25)+(AP16*20)+(AQ16*15) -> 22.3
B19: URA SUPERISSA | E19: OTT | F19: KUN | G19: LÖI | H19: TOI | I19: KL | K19: ka/L | L19: ka/T | M19: ka/KL | N19: KL-% | P19: ENSIMMÄISET RUNKOSARJASSA
B20: Runkosarja | E20: =PRODUCT(E16) -> 12 | F20: =PRODUCT(F16) -> 1 | G20: =PRODUCT(G16) -> 11 | H20: =PRODUCT(H16) -> 3 | I20: =PRODUCT(I16) -> 22 | K20: =PRODUCT((F20+G20)/E20) -> 1.00 | L20: =PRODUCT(H20/E20) -> 0.25 | M20: =PRODUCT(I20/E20) -> 1.83 | N20: =PRODUCT(N16) -> 52.4 % | O20: =PRODUCT(O16) -> 42 | P20: Ottelu | R20: 28.06. 2016 KaMa - KPL 0-2 (3-17, 1-2) | AA20: 1. ottelu | AC20: 21 v 1 kk 16 pv
B21: Ylempi loppusarja | P21: Lyöty | R21: 28.06. 2016 KaMa - KPL 0-2 (3-17, 1-2) | AA21: 1. ottelu | AC21: 21 v 1 kk 16 pv
B22: Alempi loppusarja | E22: 2 | F22: 0 | G22: 0 | H22: 0 | I22: 1 | K22: 0.00 | L22: 0.00 | M22: 0.50 | N22: 50.0 % | P22: Tuotu | R22: 15.07. 2018 Lippo Pesis - KPL 2-1 (9-8, 4-7, 9-0) | AA22: 9. ottelu | AC22: 23 v 2 kk 3 pv
B23: KAIKKI | E23: =SUM(E20:E22) -> 14 | F23: =SUM(F20:F22) -> 1 | G23: =SUM(G20:G22) -> 11 | H23: =SUM(H20:H22) -> 3 | I23: =SUM(I20:I22) -> 23 | K23: =PRODUCT((F23+G23)/E23) -> 0.86 | L23: =PRODUCT(H23/E23) -> 0.21 | M23: =PRODUCT(I23/E23) -> 1.64 | N23: =PRODUCT(I23/O23) -> 54.8 % | O23: =SUM(O20:O22) -> 42 | P23: Kunnari | R23: 15.07. 2018 Lippo Pesis - KPL 2-1 (9-8, 4-7, 9-0) | AA23: 9. ottelu | AC23: 23 v 2 kk 3 pv
B25: Seurat | D25: Lippo Juniorit = Oulun Lippo Juniorit (2003), kasvattajaseura
D26: IiU = Iin Urheilijat (1945)
D27: Lippo Pesis = Oulun Lippo Pesis (2010)
D28: MuPS = Muhoksen Pallo-Salamat (1969)
D29: KaMa = Kankaanpään Maila (1958)

Sheet MYP, MSS
B1: Jere Viitasalo | E1: 12.5.1995 Oulu
B2: YKKÖSPESIS | E2: Runkosarja | L2: Runkosarja TOP-10 | Q2: Jatkosarjat | X2: SUOMENSARJA | AA2: Runkosarja | AH2: Runkosarja TOP-10 | AM2: Jatkosarjat
B3: Vuosi | C3: Sija | D3: Seura | E3: OTT | F3: KUN | G3: LÖI | H3: TOI | I3: KL | J3: KL-% | L3: LÖI | M3: TOI | N3: L+T | O3: KL | Q3: OTT | R3: KUN | S3: LÖI | T3: TOI | U3: KL | V3: KL-% | X3: Vuosi | Y3: Sija | Z3: Seura | AA3: OTT | AB3: KUN | AC3: LÖI | AD3: TOI | AE3: KL | AF3: KL-% | AH3: LÖI | AI3: TOI | AJ3: L+T | AK3: KL | AM3: OTT | AN3: KUN | AO3: LÖI | AP3: TOI | AQ3: KL | AR3: KL-%
B4: 2012 | C4: 1. | D4: Lippo Pesis | E4: 10 | F4: 0 | G4: 1 | H4: 0 | I4: 27 | J4: 60.0 % | K4: 45 | Q4: 1 | R4: 1 | S4: 1 | T4: 1 | U4: 7 | V4: 100.0 % | W4: 7 | X4: 2012 | Y4: 9. | Z4: IiU | AA4: 6 | AB4: 0 | AC4: 0 | AD4: 13 | AE4: 35 | AF4: 72.9 % | AG4: 48
X5: 2013 | Y5: 5. | Z5: Lippo Pesis 2 | AA5: 17 | AB5: 0 | AC5: 19 | AD5: 25 | AE5: 91 | AF5: 67.4 % | AG5: 135
B6: 2014 | C6: 6. | D6: Lippo Pesis | E6: 16 | F6: 0 | G6: 9 | H6: 6 | I6: 40 | J6: 48.2 % | K6: 83 | X6: 2014 | Y6: 7. | Z6: Lippo Pesis 2 | AA6: 10 | AB6: 0 | AC6: 11 | AD6: 6 | AE6: 43 | AF6: 64.2 % | AG6: 67
B7: 2015 | C7: 1. | D7: Lippo Pesis | E7: 1 | F7: 0 | G7: 0 | H7: 0 | I7: 1 | J7: 20.0 % | K7: 5 | X7: 2015 | Y7: 1. | Z7: MuPS | AA7: 15 | AB7: 2 | AC7: 17 | AD7: 8 | AE7: 51 | AF7: 57.3 % | AG7: 89
X8: 2016 | Y8: 7. | Z8: KaMa 2 | AA8: 8 | AB8: 1 | AC8: 14 | AD8: 7 | AE8: 41 | AF8: 65.1 % | AG8: 63
X10: 2018 | Y10: 3. | Z10: Lippo Pesis 2 | AA10: 9 | AB10: 1 | AC10: 19 | AD10: 9 | AE10: 36 | AF10: 58.1 % | AG10: =PRODUCT(AE10/AF10) -> 62 | AM10: 2 | AN10: 0 | AO10: 5 | AP10: 4 | AQ10: 12 | AR10: 80.0 % | AS10: =PRODUCT(AQ10/AR10) -> 15
X11: 2019 | Y11: 6. | Z11: Lippo Jun 2 | AA11: 9 | AB11: 2 | AC11: 28 | AD11: 15 | AE11: 50 | AF11: 67.6 % | AG11: 74 | AH11: 7. | AJ11: 8.
B12: YHTEENSÄ | E12: =SUM(E4:E11) -> 27 | F12: =SUM(F4:F11) -> 0 | G12: =SUM(G4:G11) -> 10 | H12: =SUM(H4:H11) -> 6 | I12: =SUM(I4:I11) -> 68 | J12: =PRODUCT(I12/K12) -> 51.1 % | K12: =SUM(K4:K11) -> 133 | Q12: =SUM(Q4:Q11) -> 1 | R12: =SUM(R4:R11) -> 1 | S12: =SUM(S4:S11) -> 1 | T12: =SUM(T4:T11) -> 1 | U12: =SUM(U4:U11) -> 7 | V12: =PRODUCT(U12/W12) -> 100.0 % | W12: =SUM(W4:W11) -> 7 | X12: YHTEENSÄ | AA12: =SUM(AA4:AA11) -> 74 | AB12: =SUM(AB4:AB11) -> 6 | AC12: =SUM(AC4:AC11) -> 108 | AD12: =SUM(AD4:AD11) -> 83 | AE12: =SUM(AE4:AE11) -> 347 | AF12: =PRODUCT(AE12/AG12) -> 64.5 % | AG12: =SUM(AG4:AG11) -> 538.0048226 | AM12: =SUM(AM4:AM11) -> 2 | AN12: =SUM(AN4:AN11) -> 0 | AO12: =SUM(AO4:AO11) -> 5 | AP12: =SUM(AP4:AP11) -> 4 | AQ12: =SUM(AQ4:AQ11) -> 12 | AR12: =PRODUCT(AQ12/AS12) -> 80.0 % | AS12: =SUM(AS4:AS11) -> 15
B14: KAIKKI OTTELUT | E14: OTT | F14: KUN | G14: LÖI | H14: TOI | I14: KL | J14: KL-% | L14: ka/L | M14: ka/T | N14: ka/l+t | O14: ka/kl | R14: Seurat | T14: Lippo Juniorit = Oulun Lippo Juniorit (2003), kasvattajaseura
B15: SUPERPESIS | E15: 14 | F15: 1 | G15: 11 | H15: 3 | I15: 23 | J15: 44.2 % | K15: =PRODUCT(I15/J15) -> 52.0361991 | L15: =PRODUCT((F15+G15)/E15) -> 0.86 | M15: =PRODUCT(H15/E15) -> 0.21 | N15: =PRODUCT((F15+G15+H15)/E15) -> 1.07 | O15: =PRODUCT(I15/E15) -> 1.64 | T15: IiU = Iin Urheilijat (1945)
B16: YKKÖSPESIS | E16: =PRODUCT(E12+Q12) -> 28 | F16: =PRODUCT(F12+R12) -> 1 | G16: =PRODUCT(G12+S12) -> 11 | H16: =PRODUCT(H12+T12) -> 7 | I16: =PRODUCT(I12+U12) -> 75 | J16: 0.0 % | K16: =PRODUCT(K12+W12) -> 140 | L16: =PRODUCT((F16+G16)/E16) -> 0.43 | M16: =PRODUCT(H16/E16) -> 0.25 | N16: =PRODUCT((F16+G16+H16)/E16) -> 0.68 | O16: =PRODUCT(I16/E16) -> 2.68 | T16: Lippo Pesis = Oulun Lippo Pesis (2010)
B17: SUOMENSARJA | E17: =PRODUCT(AA12+AM12) -> 76 | F17: =PRODUCT(AB12+AN12) -> 6 | G17: =PRODUCT(AC12+AO12) -> 113 | H17: =PRODUCT(AD12+AP12) -> 87 | I17: =PRODUCT(AE12+AQ12) -> 359 | J17: =PRODUCT(I17/K17) -> 64.9 % | K17: =PRODUCT(AG12+AS12) -> 553.0048226 | L17: =PRODUCT((F17+G17)/E17) -> 1.57 | M17: =PRODUCT(H17/E17) -> 1.14 | N17: =PRODUCT((F17+G17+H17)/E17) -> 2.71 | O17: =PRODUCT(I17/E17) -> 4.72 | T17: MuPS = Muhoksen Pallo-Salamat (1969)
B18: YHTEENSÄ | E18: =SUM(E15:E17) -> 118 | F18: =SUM(F15:F17) -> 8 | G18: 135 | H18: 97 | I18: 457 | J18: =PRODUCT(I18/K18) -> 61.3 % | K18: =SUM(K15:K17) -> 745.0410217 | L18: =PRODUCT((F18+G18)/E18) -> 1.21 | M18: =PRODUCT(H18/E18) -> 0.82 | N18: =PRODUCT((F18+G18+H18)/E18) -> 2.03 | O18: =PRODUCT(I18/E18) -> 3.87 | T18: KaMa = Kankaanpään Maila (1958)

Sheet Arvo-ottelut
B1: ITÄ - LÄNSI - KORTTI
B2: Jere Viitasalo | C2: 12.5.1995 Oulu
B3: B-POJAT | C3: Itä - Länsi, tulos | D3: Joukkue | E3: Seura | G3: V | H3: T | I3: H | J3: Up. | K3: Lj. | L3: Palk. | M3: O | N3: K | O3: L | P3: T | Q3: KL | R3: 1 | S3: 2 | T3: 3 | U3: k | V3: KL-% | W3: Pelinjohtaja | X3: Yleisöä
B4: 20.07. 2012 Sotkamo | C4: 1-0 (1-1, 7-4) | D4: Länsi | E4: Lippo Pesis | I4: 1 | J4: L | K4: 4 | M4: 1 | O4: 1 | Q4: 4/10 | S4: 1/3 | T4: 2/5 | U4: 1/2 | V4: 40.0 % | W4: Jari Viitasalo | X4: 1358
B5: 14.07. 2013 Hyvinkää | C5: 0-2 (3-4, 2-6) | D5: Länsi | E5: Lippo Pesis | G5: 1 | J5: 3v | K5: 5 | M5: 1 | O5: 1 | P5: 1 | Q5: 4/7 | R5: 2/2 | T5: 1/2 | U5: 1/3 | V5: 57.1 % | W5: Pasi Vanhatalo | X5: 1287
B6: Yhteensä | G6: 1 | I6: 1 | M6: 2 | O6: 2 | P6: 1 | Q6: 8/17 | R6: 2/2 | S6: 1/3 | T6: 3/7 | U6: 2/5 | V6: 47.1 %
